fUST/lending_fUST_20240902
["ID","MTS","AMOUNT","RATE_DAILY","PERIOD"]
[336855116,1725215444632,-500.0,0.00024657,2]
[336855117,1725215444642,-500.0,0.00024657,2]
[336855118,1725215444651,-1409.27,0.00024657,2]
[336855119,1725215444663,-500.0,0.00024657,2]
[336855120,1725215444673,-500.0,0.00024657,2]
[336855121,1725215444683,-500.0,0.00024657,2]
[336855122,1725215444692,-1652.45,0.00024657,2]
[336855123,1725215444701,-1487.02,0.00024657,2]
[336855124,1725215444711,-1542.99,0.00024657,2]
[336855125,1725215444720,-500.0,0.00024657,2]
[336855126,1725215444729,-828.44,0.00024657,2]
[336855127,1725215444739,-672.62,0.00024657,2]
[336855128,1725215444748,-1617.74,0.00024657,2]
[336855129,1725215444758,-500.0,0.00024657,2]
[336855130,1725215444768,-500.0,0.00024657,2]
[336855131,1725215444778,-569.38,0.00024657,2]
[336855132,1725215444789,-1024.29,0.00024657,2]
[336855133,1725215444799,-500.0,0.00024657,2]
[336855134,1725215444809,-1643.79,0.00024657,2]
[336855135,1725215444818,-500.0,0.00024657,2]
[336855136,1725215444827,-1231.01,0.00024657,2]
[336855137,1725215444837,-500.0,0.00024657,2]
[336855138,1725215444846,-629.98,0.00024657,2]
[336855139,1725215444855,-500.0,0.00024657,2]
[336855140,1725215444865,-500.0,0.00024657,2]
[336855141,1725215444875,-500.0,0.00024657,2]
[336855142,1725215444884,-2384.28329679,0.00024657,2]
[336855143,1725215445198,-241.49670321,0.00024657,2]
[336855144,1725215445207,-500.0,0.00024657,2]
[336855145,1725215445217,-7723.39,0.00024657,2]
[336855146,1725215445226,-500.0,0.00024657,2]
[336855147,1725215445236,-1234.03,0.00024657,2]
[336855148,1725215445245,-500.0,0.00024657,2]
[336855149,1725215445254,-740.27,0.00024657,2]
[336855150,1725215445264,-552.21,0.00024657,2]
[336855151,1725215445273,-1688.4,0.00024657,2]
[336855152,1725215445282,-500.0,0.00024657,2]
[336855153,1725215445292,-643.04,0.00024657,2]
[336855154,1725215445301,-500.0,0.00024657,2]
[336855155,1725215445310,-500.0,0.00024657,2]
[336855156,1725215445320,-1856.33,0.00024657,2]
[336855157,1725215445329,-500.0,0.00024657,2]
[336855158,1725215445339,-500.0,0.00024657,2]
[336855159,1725215445348,-568.62,0.00024657,2]
[336855160,1725215445358,-1918.56,0.00024657,2]
[336855161,1725215445367,-500.0,0.00024657,2]
[336855162,1725215445376,-500.0,0.00024657,2]
[336855163,1725215445385,-500.0,0.00024657,2]
[336855164,1725215445394,-3731.96,0.00024657,2]
[336855165,1725215445403,-1279.31,0.00024657,2]
[336855166,1725215445414,-515.86,0.00024657,2]
[336855167,1725215445424,-705.74,0.00024657,2]
[336855168,1725215445434,-500.0,0.00024657,2]
[336855169,1725215445444,-1287.24,0.00024657,2]
[336855170,1725215445454,-500.0,0.00024657,2]
[336855171,1725215445465,-500.0,0.00024657,2]
[336855172,1725215445474,-2636.96,0.00024657,2]
[336855173,1725215445483,-1962.73,0.00024657,2]
[336855174,1725215445493,-500.0,0.00024657,2]
[336855175,1725215445502,-500.0,0.00024657,2]
[336855176,1725215445511,-500.0,0.00024657,2]
[336855177,1725215445520,-500.0,0.00024657,2]
[336855178,1725215445531,-500.0,0.00024657,2]
[336855179,1725215445540,-505.40818302,0.00024657,2]
[336855180,1725215445550,-502.75961608,0.00024657,2]
[336855181,1725215445559,-1603.59,0.00024657,2]
[336855182,1725215445573,-500.0,0.00024657,2]
[336855183,1725215445582,-500.0,0.00024657,2]
[336855185,1725215445592,-505.72680166,0.00024657,2]
[336855187,1725215445602,-500.0,0.00024657,2]
[336855189,1725215445612,-500.0,0.00024657,2]
[336855191,1725215445621,-1374.92,0.00024657,2]
[336855193,1725215445630,-500.0,0.00024657,2]
[336855195,1725215445640,-500.0,0.00024657,2]
[336855197,1725215445652,-272.73879747,0.00024657,2]
[336855199,1725215445662,-500.0,0.00024657,2]
[336855201,1725215445672,-500.0,0.00024657,2]
[336855203,1725215445681,-500.0,0.00024657,2]
[336855205,1725215445690,-530.19,0.00024657,2]
[336855207,1725215445700,-1978.29,0.00024657,2]
[336855208,1725215445710,-500.0,0.00024657,2]
[336855209,1725215445719,-500.0,0.00024657,2]
[336855210,1725215445729,-500.0,0.00024657,2]
[336855211,1725215445738,-500.0,0.00024657,2]
[336855212,1725215445747,-500.0,0.00024657,2]
[336855213,1725215445757,-500.0,0.00024673,2]
[336855214,1725215445768,-153.0,0.000247,2]
[336855215,1725215445777,-409.6979826,0.000247,2]
[336855216,1725215445787,-207.943127,0.000247,2]
[336855217,1725215445796,-1368.23083191,0.00024831,2]
[336855218,1725215445805,-6865.5135267,0.00024921,3]
[336855219,1725215445814,-500.0,0.0002493,2]
[336855221,1725215445824,-500.0,0.0002493,2]
[336855222,1725215445833,-500.0,0.0002493,2]
[336855223,1725215445843,-500.0,0.0002493,2]
[336855224,1725215445853,-500.0,0.0002493,2]
[336855225,1725215445862,-500.0,0.0002493,2]
[336855226,1725215445871,-500.0,0.0002493,2]
[336855227,1725215445881,-500.0,0.0002493,2]
[336855228,1725215445890,-500.0,0.0002493,2]
[336855229,1725215445900,-500.0,0.0002493,2]
[336855230,1725215445912,-500.0,0.00024931,2]
[336855231,1725215445921,-500.0,0.00024931,2]
[336855232,1725215445931,-500.0,0.00024931,2]
[336855233,1725215445940,-500.0,0.00024931,2]
[336855234,1725215445949,-500.0,0.00024931,2]
[336855235,1725215445958,-500.0,0.00024931,2]
[336855236,1725215445967,-500.0,0.00024931,2]
[336855237,1725215445977,-500.0,0.00024931,2]
[336855238,1725215445986,-500.0,0.00024931,2]
[336855239,1725215445996,-500.0,0.00024931,2]
[336855240,1725215446006,-500.0,0.00024931,2]
[336855241,1725215446015,-500.0,0.00024931,2]
[336855242,1725215446024,-500.0,0.00024931,2]
[336855244,1725215446034,-500.0,0.00024931,2]
[336855245,1725215446043,-500.0,0.00024931,2]
[336855246,1725215446052,-500.0,0.00024931,2]
[336855247,1725215446062,-500.0,0.00024931,2]
[336855248,1725215446072,-500.0,0.00024931,2]
[336855249,1725215446081,-500.0,0.00024931,2]
[336855250,1725215446091,-500.0,0.00024931,2]
[336855251,1725215446101,-500.0,0.00024931,2]
[336855252,1725215446110,-869.91,0.00024931,2]
[336855253,1725215446119,-580.39382741,0.00024931,2]
[336855254,1725215446129,-500.0,0.00024931,2]
[336855255,1725215446138,-500.0,0.00024931,2]
[336855256,1725215446149,-500.0,0.00024931,2]
[336855257,1725215446159,-500.0,0.00024931,2]
[336855258,1725215446171,-500.0,0.00024931,2]
[336855259,1725215446180,-500.0,0.00024931,2]
[336855260,1725215446189,-500.0,0.00024931,2]
[336855261,1725215446199,-557.48951493,0.00024931,2]
[336855262,1725215446208,-500.0,0.00024931,2]
[336855263,1725215446217,-500.0,0.00024931,2]
[336855264,1725215446227,-500.0,0.00024931,2]
[336855265,1725215446236,-525.90832336,0.00024931,2]
[336855266,1725215446245,-394.65511845,0.00024931,2]
[336855267,1725215446254,-506.87810962,0.00024931,2]
[336855268,1725215446264,-500.0,0.00024931,2]
[336855269,1725215446273,-500.0,0.00024931,2]
[336855270,1725215446282,-500.0,0.00024931,2]
[336855271,1725215446291,-500.0,0.00024931,2]
[336855272,1725215446300,-500.0,0.00024931,2]
[336855273,1725215446309,-167.39830385,0.00024931,2]
[336855274,1725215446319,-500.0,0.00024931,2]
[336855275,1725215446328,-500.0,0.00024931,2]
[336855276,1725215446337,-500.0,0.00024931,2]
[336855277,1725215446347,-500.0,0.00024931,2]
[336855278,1725215446357,-500.0,0.00024931,2]
[336855279,1725215446366,-500.0,0.00024931,2]
[336855280,1725215446376,-500.0,0.00024931,2]
[336855281,1725215446386,-500.0,0.00024931,2]
[336855282,1725215446395,-500.0,0.00024931,2]
[336855283,1725215446404,-500.0,0.00024931,2]
[336855284,1725215446417,-500.0,0.00024931,2]
[336855285,1725215446433,-646.6,0.00024931,2]
[336855286,1725215446442,-500.0,0.00024931,2]
[336855287,1725215446451,-784.76,0.00024931,2]
[336855288,1725215446461,-500.0,0.00024931,2]
[336855289,1725215446470,-500.0,0.00024931,2]
[336855290,1725215446479,-500.0,0.00024931,2]
[336855291,1725215446488,-687.81,0.00024931,2]
[336855292,1725215446498,-500.0,0.00024931,2]
[336855293,1725215446507,-500.0,0.00024931,2]
[336855294,1725215446517,-500.0,0.00024931,2]
[336855295,1725215446526,-500.0,0.00024931,2]
[336855296,1725215446536,-500.0,0.00024931,2]
[336855297,1725215446546,-952.17,0.00024931,2]
[336855298,1725215446560,-500.0,0.00024931,2]
[336855299,1725215446570,-500.0,0.00024931,2]
[336855300,1725215446580,-709.86,0.00024931,2]
[336855301,1725215446590,-500.0,0.00024931,2]
[336855302,1725215446601,-500.0,0.00024931,2]
[336855303,1725215446610,-500.0,0.00024931,2]
[336855304,1725215446620,-500.0,0.00024931,2]
[336855305,1725215446630,-752.49,0.00024931,2]
[336855306,1725215446640,-1121.6,0.00024931,2]
[336855307,1725215446650,-654.76,0.00024931,2]
[336855308,1725215446661,-545.76850301,0.00024931,2]
[336855309,1725215446670,-500.0,0.00024931,2]
[336855310,1725215446807,-500.0,0.00024931,2]
[336855311,1725215446817,-500.0,0.00024931,2]
[336855312,1725215446827,-500.0,0.00024931,2]
[336855313,1725215446837,-500.0,0.00024931,2]
[336855314,1725215446846,-500.0,0.00024931,2]
[336855315,1725215446856,-500.0,0.00024931,2]
[336855316,1725215446866,-500.0,0.00024931,2]
[336855317,1725215446876,-500.0,0.00024931,2]
[336855318,1725215446885,-500.0,0.00024931,2]
[336855319,1725215446895,-500.0,0.00024931,2]
[336855320,1725215446904,-500.0,0.00024931,2]
[336855321,1725215446919,-500.0,0.00024931,2]
[336855322,1725215446928,-527.94596193,0.00024931,2]
[336855323,1725215446937,-500.0,0.00024931,2]
[336855324,1725215446947,-562.94,0.00024931,2]
[336855325,1725215446956,-500.0,0.00024931,2]
[336855326,1725215446966,-500.0,0.00024931,2]
[336855327,1725215446975,-500.0,0.00024931,2]
[336855328,1725215446985,-500.0,0.00024931,2]
[336855329,1725215446995,-500.0,0.00024931,2]
[336855330,1725215447004,-408.33154517,0.00024931,2]
[336855331,1725215447015,-500.0,0.00024931,2]
[336855332,1725215447025,-935.11,0.00024931,2]
[336855333,1725215447035,-500.0,0.00024931,2]
[336855334,1725215447045,-500.0,0.00024931,2]
[336855335,1725215447055,-500.0,0.00024931,2]
[336855336,1725215447064,-500.0,0.00024931,2]
[336855337,1725215447074,-500.0,0.00024931,2]
[336855338,1725215447084,-500.0,0.00024931,2]
[336855339,1725215447095,-440.22362328,0.00024931,2]
[336855340,1725215447104,-500.0,0.00024931,2]
[336855341,1725215447114,-500.0,0.00024931,2]
[336855342,1725215447123,-500.0,0.00024931,2]
[336855343,1725215447134,-500.0,0.00024931,2]
[336855344,1725215447144,-3222.16,0.00024931,2]
[336855345,1725215447153,-500.0,0.00024931,2]
[336855346,1725215447165,-500.0,0.00024931,2]
[336855347,1725215447175,-500.0,0.00024931,2]
[336855348,1725215447186,-500.0,0.00024931,2]
[336855349,1725215447195,-500.0,0.00024931,2]
[336855350,1725215447205,-500.0,0.00024931,2]
[336855351,1725215447215,-673.69,0.00024931,2]
[336855352,1725215447224,-502.57258603,0.00024931,2]
[336855353,1725215447234,-500.0,0.00024931,2]
[336855354,1725215447244,-313.38460656,0.00024931,2]
[336855355,1725215447254,-500.0,0.00024931,2]
[336855356,1725215447263,-667.92,0.00024931,2]
[336855357,1725215447273,-500.0,0.00024931,2]
[336855358,1725215447283,-500.0,0.00024931,2]
[336855359,1725215447292,-500.0,0.00024931,2]
[336855360,1725215447302,-500.0,0.00024931,2]
[336855361,1725215447311,-1213.8,0.00024931,2]
[336855362,1725215447322,-758.25,0.00024931,2]
[336855363,1725215447332,-500.0,0.00024931,2]
[336855364,1725215447342,-500.0,0.00024931,2]
[336855365,1725215447352,-500.0,0.00024931,2]
[336855366,1725215447361,-625.34,0.00024931,2]
[336855367,1725215447373,-500.0,0.00024931,2]
[336855368,1725215447382,-500.0,0.00024931,2]
[336855369,1725215447392,-500.0,0.00024931,2]
[336855370,1725215447401,-500.0,0.00024931,2]
[336855371,1725215447414,-500.0,0.00024931,2]
[336855372,1725215447423,-683.92,0.00024931,2]
[336855373,1725215447433,-607.62,0.00024931,2]
[336855374,1725215447444,-500.0,0.00024931,2]
[336855375,1725215447455,-500.0,0.00024931,2]
[336855376,1725215447464,-674.08,0.00024931,2]
[336855377,1725215447473,-500.0,0.00024931,2]
[336855378,1725215447483,-506.13628989,0.00024931,2]
[336855379,1725215447492,-500.0,0.00024931,2]
[336855380,1725215447502,-533.86,0.00024931,2]
[336855381,1725215447511,-500.0,0.00024931,2]
[336855382,1725215447520,-500.0,0.00024931,2]
[336855383,1725215447530,-500.0,0.00024931,2]
[336855384,1725215447539,-500.0,0.00024931,2]
[336855385,1725215447548,-500.0,0.00024931,2]
[336855386,1725215447558,-500.0,0.00024931,2]
[336855387,1725215447571,-500.0,0.00024931,2]
[336855388,1725215447581,-500.0,0.00024931,2]
[336855389,1725215447590,-500.0,0.00024931,2]
[336855390,1725215447599,-508.46636851,0.00024931,2]
[336855391,1725215447609,-500.0,0.00024931,2]
[336855392,1725215447619,-500.0,0.00024931,2]
[336855393,1725215447629,-500.0,0.00024931,2]
[336855394,1725215447640,-500.0,0.00024931,2]
[336855395,1725215447653,-662.7,0.00024931,2]
[336855396,1725215447665,-640.46,0.00024931,2]
[336855397,1725215447674,-500.0,0.00024931,2]
[336855398,1725215447683,-500.0,0.00024931,2]
[336855399,1725215447693,-500.0,0.00024931,2]
[336855400,1725215447702,-500.0,0.00024931,2]
[336855401,1725215447711,-500.0,0.00024931,2]
[336855402,1725215447721,-500.0,0.00024931,2]
[336855403,1725215447730,-500.0,0.00024931,2]
[336855404,1725215447740,-500.0,0.00024931,2]
[336855405,1725215447750,-500.0,0.00024931,2]
[336855406,1725215447759,-500.0,0.00024931,2]
[336855407,1725215447768,-500.0,0.00024931,2]
[336855408,1725215447777,-1209.49,0.00024931,2]
[336855409,1725215447787,-354.29299928,0.00024931,2]
[336855410,1725215447796,-500.0,0.00024931,2]
[336855411,1725215447806,-505.55047737,0.00024931,2]
[336855412,1725215447816,-507.51553229,0.00024931,2]
[336855413,1725215447825,-1015.74,0.00024931,2]
[336855414,1725215447835,-751.25,0.00024931,2]
[336855415,1725215447844,-518.77241438,0.00024931,2]
[336855416,1725215447853,-772.03,0.00024931,2]
[336855417,1725215447863,-555.28,0.00024931,2]
[336855418,1725215447873,-1110.68,0.00024931,2]
[336855419,1725215447883,-503.24694525,0.00024931,2]
[336855420,1725215447892,-500.0,0.00024931,2]
[336855421,1725215447902,-500.0,0.00024931,2]
[336855422,1725215447915,-1758.27,0.00024931,2]
[336855423,1725215447924,-510.58988654,0.00024931,2]
[336855424,1725215447934,-500.0,0.00024931,2]
[336855425,1725215447943,-500.0,0.00024931,2]
[336855426,1725215447953,-5517.21,0.00024931,2]
[336855427,1725215447962,-500.0,0.00024931,2]
[336855428,1725215447971,-500.0,0.00024931,2]
[336855429,1725215447981,-2240.32,0.00024931,2]
[336855430,1725215447990,-984.79,0.00024931,2]
[336855431,1725215448000,-500.0,0.00024931,2]
[336855432,1725215448009,-1783.27,0.00024931,2]
[336855433,1725215448019,-500.0,0.00024931,2]
[336855434,1725215448028,-500.0,0.00024931,2]
[336855435,1725215448037,-2629.02,0.00024931,2]
[336855436,1725215448046,-1629.43,0.00024931,2]
[336855437,1725215448055,-506.33,0.00024931,2]
[336855438,1725215448065,-1242.97,0.00024931,2]
[336855439,1725215448074,-500.0,0.00024931,2]
[336855440,1725215448083,-500.0,0.00024931,2]
[336855441,1725215448093,-1079.32,0.00024931,2]
[336855442,1725215448103,-500.0,0.00024931,2]
[336855443,1725215448113,-500.0,0.00024931,2]
[336855444,1725215448123,-500.0,0.00024931,2]
[336855445,1725215448132,-721.57,0.00024931,2]
[336855446,1725215448142,-1619.62,0.00024931,2]
[336855447,1725215448152,-585.54,0.00024931,2]
[336855448,1725215448165,-1470.2,0.00024931,2]
[336855449,1725215448174,-888.35,0.00024931,2]
[336855450,1725215448183,-500.0,0.00024931,2]
[336855451,1725215448193,-500.0,0.00024931,2]
[336855452,1725215448203,-500.0,0.00024931,2]
[336855453,1725215448212,-245.44866498,0.00024931,2]
[336855454,1725215448222,-527.65,0.00024931,2]
[336855455,1725215448231,-1076.25,0.00024931,2]
[336855456,1725215448240,-2023.14,0.00024931,2]
[336855457,1725215448250,-2074.7,0.00024931,2]
[336855458,1725215448259,-500.0,0.00024931,2]
[336855459,1725215448268,-1359.2,0.00024931,2]
[336855460,1725215448278,-594.96,0.00024931,2]
[336855461,1725215448287,-1295.16,0.00024931,2]
[336855462,1725215448298,-500.0,0.00024931,2]
[336855463,1725215448307,-500.0,0.00024931,2]
[336855464,1725215448318,-1896.14,0.00024931,2]
[336855465,1725215448327,-500.0,0.00024931,2]
[336855466,1725215448337,-500.0,0.00024931,2]
[336855467,1725215448346,-742.76,0.00024931,2]
[336855468,1725215448356,-544.43,0.00024931,2]
[336855469,1725215448366,-500.0,0.00024931,2]
[336855470,1725215448376,-500.0,0.00024931,2]
[336855471,1725215448385,-500.0,0.00024931,2]
[336855472,1725215448394,-500.0,0.00024931,2]
[336855473,1725215448404,-500.0,0.00024931,2]
[336855474,1725215448419,-500.0,0.00024931,2]
[336855475,1725215448428,-500.0,0.00024931,2]
[336855476,1725215448438,-1704.95,0.00024931,2]
[336855477,1725215448448,-2275.91,0.00024931,2]
[336855478,1725215448457,-763.9,0.00024931,2]
[336855479,1725215448466,-500.0,0.00024931,2]
[336855480,1725215448476,-500.0,0.00024931,2]
[336855481,1725215448485,-500.0,0.00024931,2]
[336855482,1725215448496,-500.0,0.00024931,2]
[336855483,1725215448505,-704.69,0.00024931,2]
[336855484,1725215448515,-500.0,0.00024931,2]
[336855485,1725215448525,-13304.05,0.00024931,2]
[336855486,1725215448535,-500.0,0.00024931,2]
[336855487,1725215448545,-500.0,0.00024931,2]
[336855488,1725215448559,-500.0,0.00024931,2]
[336855489,1725215448569,-699.49,0.00024931,2]
[336855490,1725215448578,-2354.18,0.00024931,2]
[336855491,1725215448587,-500.0,0.00024931,2]
[336855492,1725215448598,-1717.48,0.00024931,2]
[336855493,1725215448607,-1650.55,0.00024931,2]
[336855494,1725215448616,-1724.01,0.00024931,2]
[336855495,1725215448625,-500.0,0.00024931,2]
[336855496,1725215448636,-500.0,0.00024931,2]
[336855497,1725215448646,-2159.25,0.00024931,2]
[336855498,1725215448655,-500.0,0.00024931,2]
[336855499,1725215448666,-548.33591432,0.00024931,2]
[336855500,1725215448676,-500.0,0.00024931,2]
[336855501,1725215448685,-1096.4,0.00024931,2]
[336855502,1725215448695,-779.61,0.00024931,2]
[336855503,1725215448704,-500.0,0.00024931,2]
[336855504,1725215448713,-1346.63,0.00024931,2]
[336855505,1725215448723,-2785.55,0.00024931,2]
[336855506,1725215448733,-710.04,0.00024931,2]
[336855507,1725215448743,-500.0,0.00024931,2]
[336855508,1725215448752,-500.0,0.00024931,2]
[336855509,1725215448761,-500.0,0.00024931,2]
[336855510,1725215448771,-500.0,0.00024931,2]
[336855511,1725215448780,-500.0,0.00024931,2]
[336855512,1725215448789,-694.54,0.00024931,2]
[336855513,1725215448799,-500.0,0.00024931,2]
[336855514,1725215448808,-651.91,0.00024931,2]
[336855515,1725215448817,-680.75,0.00024931,2]
[336855516,1725215448827,-1217.07,0.00024931,2]
[336855517,1725215448836,-1570.55,0.00024931,2]
[336855518,1725215448846,-1068.74,0.00024931,2]
[336855519,1725215448855,-732.75,0.00024931,2]
[336855520,1725215448865,-1050.97,0.00024931,2]
[336855521,1725215448875,-500.0,0.00024931,2]
[336855522,1725215448884,-500.0,0.00024931,2]
[336855523,1725215448894,-500.0,0.00024931,2]
[336855524,1725215448904,-500.0,0.00024931,2]
[336855525,1725215448915,-500.0,0.00024931,2]
[336855526,1725215448925,-500.0,0.00024931,2]
[336855527,1725215448935,-500.0,0.00024931,2]
[336855528,1725215448944,-500.0,0.00024931,2]
[336855529,1725215448955,-500.0,0.00024931,2]
[336855530,1725215448964,-1409.27,0.00024931,2]
[336855531,1725215448974,-461.86932819,0.00024931,2]
[336855532,1725215448983,-500.0,0.00024931,2]
[336855533,1725215448993,-500.0,0.00024931,2]
[336855534,1725215449003,-1652.45,0.00024931,2]
[336855535,1725215449013,-1487.02,0.00024931,2]
[336855536,1725215449022,-1542.99,0.00024931,2]
[336855537,1725215449032,-500.0,0.00024931,2]
[336855538,1725215449042,-828.44,0.00024931,2]
[336855539,1725215449051,-672.62,0.00024931,2]
[336855540,1725215449060,-1617.74,0.00024931,2]
[336855541,1725215449070,-500.0,0.00024931,2]
[336855542,1725215449079,-500.0,0.00024931,2]
[336855543,1725215449088,-569.38,0.00024931,2]
[336855544,1725215449098,-1024.29,0.00024931,2]
[336855545,1725215449107,-1643.79,0.00024931,2]
[336855546,1725215449117,-1231.01,0.00024931,2]
[336855547,1725215449126,-500.0,0.00024931,2]
[336855548,1725215449136,-629.98,0.00024931,2]
[336855549,1725215449145,-500.0,0.00024931,2]
[336855550,1725215449155,-2625.78,0.00024931,2]
[336855551,1725215449167,-449.61626795,0.00024931,2]
[336855552,1725215449671,-500.0,0.00024657,2]
[336855553,1725215449680,-500.0,0.00024657,2]
[336855554,1725215449690,-50.38373205,0.00024931,2]
[336855555,1725215449699,-7723.39,0.00024931,2]
[336855556,1725215449709,-1234.03,0.00024931,2]
[336855557,1725215449718,-740.27,0.00024931,2]
[336855558,1725215449728,-500.0,0.00024931,2]
[336855559,1725215449737,-1688.4,0.00024931,2]
[336855560,1725215449747,-552.21,0.00024931,2]
[336855561,1725215449757,-643.04,0.00024931,2]
[336855562,1725215449767,-500.0,0.00024931,2]
[336855563,1725215449776,-1856.33,0.00024931,2]
[336855564,1725215449785,-500.0,0.00024931,2]
[336855565,1725215449795,-568.62,0.00024931,2]
[336855566,1725215449804,-1918.56,0.00024931,2]
[336855567,1725215449814,-500.0,0.00024931,2]
[336855568,1725215449823,-500.0,0.00024931,2]
[336855569,1725215449833,-3731.96,0.00024931,2]
[336855570,1725215449842,-1279.31,0.00024931,2]
[336855571,1725215449852,-515.86,0.00024931,2]
[336855572,1725215449861,-705.74,0.00024931,2]
[336855573,1725215449871,-1287.24,0.00024931,2]
[336855574,1725215449881,-500.0,0.00024931,2]
[336855575,1725215449891,-500.0,0.00024931,2]
[336855576,1725215449901,-2636.96,0.00024931,2]
[336855577,1725215449911,-1962.73,0.00024931,2]
[336855578,1725215449930,-500.0,0.00024931,2]
[336855579,1725215449940,-500.0,0.00024931,2]
[336855580,1725215449949,-500.0,0.00024931,2]
[336855581,1725215449959,-500.0,0.00024931,2]
[336855582,1725215449968,-1603.59,0.00024931,2]
[336855583,1725215449978,-500.0,0.00024931,2]
[336855584,1725215449987,-500.0,0.00024931,2]
[336855585,1725215449996,-1374.92,0.00024931,2]
[336855586,1725215450005,-500.0,0.00024931,2]
[336855587,1725215450015,-501.5337948,0.00024931,2]
[336855588,1725215450025,-500.0,0.00024931,2]
[336855589,1725215450036,-500.0,0.00024931,2]
[336855590,1725215450046,-500.0,0.00024931,2]
[336855591,1725215450056,-530.19,0.00024931,2]
[336855592,1725215450066,-1978.29,0.00024931,2]
[336855593,1725215450076,-500.0,0.00024931,2]
[336855594,1725215450086,-500.0,0.00024931,2]
[336855595,1725215450096,-500.0,0.00024931,2]
[336855596,1725215450105,-583.82,0.00024931,2]
[336855597,1725215450116,-500.0,0.00024973,2]
[336855598,1725215450126,-1373.10270534,0.0002499,3]
[336855599,1725215450136,-15466.92221558,0.00025,13]
[336855600,1725215450147,-150.112233,0.00025,4]
[336855601,1725215450157,-330.146762,0.00025,7]
[336855602,1725215450171,-330.146762,0.00025,7]
[336855603,1725215450181,-172.0,0.00025,2]
[336855604,1725215450192,-11933.91398152,0.00025,2]
[336855605,1725215450202,-6694.32049718,0.00025,2]
[336855606,1725215450212,-160.0,0.00025,2]
[336855607,1725215450221,-16329.96101397,0.0002509,2]
[336855608,1725215450230,-150.11224,0.000251,6]
[336855609,1725215450240,-383.04885566,0.0002513,7]
[336855610,1725215450250,-383.04885566,0.0002513,7]
[336855611,1725215450260,-383.04885566,0.0002513,7]
[336855612,1725215450269,-383.04885566,0.0002513,7]
[336855613,1725215450279,-383.04885566,0.0002513,7]
[336855614,1725215450289,-383.04885566,0.0002513,7]
[336855615,1725215450299,-383.04885566,0.0002513,7]
[336855616,1725215450308,-383.04885566,0.0002513,7]
[336855617,1725215450318,-383.04885566,0.0002513,7]
[336855618,1725215450327,-383.04885566,0.0002513,7]
[336855619,1725215450336,-383.04885566,0.0002513,7]
[336855620,1725215450346,-383.04885566,0.0002513,7]
[336855621,1725215450357,-383.04885566,0.0002513,7]
[336855622,1725215450367,-383.04885566,0.0002513,7]
[336855623,1725215450377,-383.04885566,0.0002513,7]
[336855624,1725215450386,-383.04885566,0.0002513,7]
[336855625,1725215450396,-383.04885566,0.0002513,7]
[336855626,1725215450406,-383.04885566,0.0002513,7]
[336855627,1725215450419,-383.04885566,0.0002513,7]
[336855628,1725215450430,-383.54,0.0002513,7]
[336855629,1725215450439,-1532.27042263,0.0002513,7]